bitfinex/quotes_SOLUSD_20250902
["timestamp","ask_amount","ask_price","bid_price","bid_amount"]
[1756823675983,35.9,204.94,204.93,26.28432314]
[1756823676303,35.9,204.94,204.92,0.28432314]
[1756823676304,36.56,204.94,204.92,12.1088387]
[1756823676481,0.66,204.93,204.92,12.1088387]
[1756823676801,41.9,204.93,204.91,4.8801913]
[1756823676974,41.24,204.93,204.92,12.1088387]
[1756823677585,41.9,204.93,204.92,12.1088387]
[1756823677792,1e-08,204.95,204.92,16.98879185]
[1756823678007,41.24,204.94,204.92,30.87995315]
[1756823678172,1e-08,204.95,204.93,12.1088387]
[1756823678368,1e-08,204.95,204.94,12.39316184]
[1756823678599,32.14000001,204.95,204.94,12.39316184]
[1756823678781,32.80000001,204.95,204.94,26.28432314]
[1756823679100,32.80000001,204.95,204.94,26.0]
[1756823679394,41.18000001,204.95,204.94,30.87947692]
[1756823679777,1e-08,204.95,204.94,42.98831562]
[1756823679986,41.18000001,204.95,204.94,42.98831562]
[1756823680499,41.87000001,204.95,204.92,12.1088387]
[1756823680801,0.69,204.94,204.91,12.1088387]
[1756823681002,0.69,204.93,204.87,4.88114414]
[1756823681172,0.69,204.92,204.89,12.1088387]
[1756823681500,41.85,204.91,204.89,4.88057325]
[1756823681708,1e-08,204.95,204.9,12.1088387]
[1756823682008,1e-08,204.95,204.89,30.88057325]
[1756823682208,41.85,204.94,204.92,12.1088387]
[1756823682378,0.69,204.93,204.9,12.1088387]
[1756823682716,41.85,204.92,204.89,30.88057325]
[1756823682899,0.69,204.92,204.89,30.88057325]
[1756823683103,41.14,204.91,204.89,30.88057325]
[1756823683282,0.69,204.94,204.89,30.88057325]
[1756823683614,1e-08,204.95,204.9,0.28432314]
[1756823683913,1e-08,204.95,204.94,12.1088387]
[1756823684112,41.81,204.94,204.93,12.1088387]
[1756823684803,41.12,204.94,204.93,12.1088387]
[1756823684978,0.69,204.94,204.93,12.1088387]
[1756823685184,41.12,204.94,204.93,12.1088387]
[1756823685387,41.12,204.94,204.93,16.98832453]
[1756823685588,1e-08,204.95,204.94,0.28432314]
[1756823685797,1e-08,204.95,204.94,26.13091742]
[1756823686306,1e-08,204.95,204.94,26.80091742]
[1756823686809,1e-08,204.95,204.94,26.13091742]
[1756823687189,1e-08,204.95,204.94,14.69207872]
[1756823687391,1e-08,204.95,204.94,31.68039434]
[1756823687705,1e-08,204.95,204.94,31.01039434]
[1756823688690,1e-08,204.95,204.94,5.16380006]
[1756823688893,1e-08,204.95,204.94,16.98831562]
[1756823689092,0.69000001,204.95,204.94,16.98831562]
[1756823689294,0.69000001,204.95,204.94,12.1088387]
[1756823689828,41.75000001,204.95,204.94,12.1088387]
[1756823689997,1e-08,204.95,204.94,12.39316184]
[1756823690543,1e-08,204.95,204.94,13.20532341]
[1756823690726,1e-08,204.95,204.94,26.80091742]
[1756823691226,1e-08,204.95,204.94,26.13091742]
[1756823691519,1e-08,204.95,204.94,31.68039434]
[1756823691729,1e-08,204.95,204.94,31.71039434]
[1756823693120,0.2,204.97,204.96,39.73775558]
[1756823693328,1e-08,204.97,204.96,64.23975612]
[1756823693507,1e-08,204.97,204.96,69.7887569]
[1756823694317,1e-08,204.97,204.96,69.1187569]
[1756823695839,1e-08,204.97,204.96,44.9010795]
[1756823696341,1e-08,204.97,204.96,69.1187569]
[1756823696635,1e-08,204.97,204.96,44.61675636]
[1756823696832,0.69000001,204.97,204.96,56.72559506]
[1756823697038,0.69000001,204.97,204.96,42.98783948]
[1756823697335,1e-08,204.97,204.96,42.98783948]
[1756823697538,1e-08,204.97,204.96,56.72559506]
[1756823698213,1e-08,204.97,204.96,42.98783948]
[1756823698214,0.69000001,204.97,204.96,42.98783948]
[1756823698829,0.69000001,204.97,204.96,38.1088387]
[1756823699032,0.69000001,204.97,204.94,0.03]
[1756823699033,12.79883871,204.97,204.94,0.03]
[1756823699246,0.69000001,204.97,204.94,0.03]
[1756823699410,12.79883871,204.97,204.94,0.03]
[1756823699740,17.67761544,204.97,204.94,0.03]
[1756823700034,12.79883871,204.97,204.94,0.03]
[1756823700210,12.1088387,204.95,204.94,0.03]
[1756823700410,0.69000001,204.97,204.94,0.03]
[1756823700606,0.69,204.95,204.94,0.03]
[1756823701016,41.51,204.95,204.94,0.03]
[1756823701215,0.69,204.95,204.94,12.1388387]
[1756823701633,41.53,204.95,204.94,0.03]
[1756823702556,58.51807753,204.95,204.91,0.03]
[1756823702742,12.1088387,204.92,204.84,0.03]
[1756823702939,5.56923883,204.95,204.87,12.1088387]
[1756823703141,12.1088387,204.93,204.87,12.1088387]
[1756823703347,0.69,204.92,204.88,12.1088387]
[1756823703538,26.28432315,204.97,204.84,4.91184993]
[1756823703539,0.69,204.91,204.9,8.01645527]
[1756823703739,0.69,204.95,204.9,8.01645527]
[1756823704058,8.01645528,204.97,204.91,14.40775558]
[1756823704059,1e-08,204.97,204.91,14.40775558]
[1756823704258,40.8,204.96,204.92,26.0]
[1756823704431,1e-08,204.97,204.92,26.0]
[1756823704630,1e-08,204.97,204.93,14.02207872]
[1756823704861,1e-08,204.97,204.93,14.69207872]
[1756823705059,1e-08,204.97,204.96,47.75421085]
[1756823705243,1e-08,204.97,204.96,55.77066612]
[1756823705446,1e-08,204.97,204.96,48.42421085]
[1756823705651,1e-08,204.97,204.96,53.30321163]
[1756823705852,1e-08,204.97,204.96,35.60399004]
[1756823706439,1e-08,204.97,204.96,52.91753477]
[1756823706757,1e-08,204.97,204.96,21.75421085]
[1756823707142,1e-08,204.97,204.96,26.63321163]
[1756823707350,1e-08,204.97,204.96,35.60399004]
[1756823708256,1e-08,204.97,204.96,34.93399004]
[1756823708473,1e-08,204.97,204.96,26.63321163]
[1756823708853,1e-08,204.97,204.96,18.61675636]
[1756823709147,1e-08,204.97,204.96,52.63321163]
[1756823709551,1e-08,204.97,204.96,35.62399004]
[1756823709862,1e-08,204.97,204.96,34.93399004]
[1756823710067,1e-08,204.97,204.96,35.62399004]
[1756823710851,1e-08,204.97,204.96,18.9010795]
[1756823711056,1e-08,204.97,204.96,26.91753477]
[1756823711459,1e-08,204.97,204.96,34.93399004]
[1756823711640,1e-08,204.97,204.96,35.62399004]
[1756823711841,1e-08,204.98,204.97,13.73775558]
[1756823712053,1e-08,204.98,204.97,22.44421085]
[1756823712438,0.06,205.0,204.99,26.0]
[1756823712741,0.66,205.08,204.99,26.0]
[1756823712742,0.06,205.02,205.0,14.02207872]
[1756823712940,0.06,205.02,205.01,48.72853399]
[1756823713164,0.06,205.02,205.01,14.02207872]
[1756823713360,0.06,205.02,205.01,18.89988955]
[1756823713549,0.06,205.02,205.01,26.91634482]
[1756823713752,0.06,205.02,205.01,8.01645527]
[1756823713950,0.72,205.02,205.01,8.01645527]
[1756823714257,0.72,205.02,205.0,26.0]
[1756823714258,0.06,205.02,205.0,26.0]
[1756823714467,0.06,205.02,205.01,8.01645527]
[1756823714965,0.06,205.02,205.0,26.0]
[1756823715166,0.66,205.01,204.98,8.01645527]
[1756823715651,0.66,205.0,204.98,8.01645527]
[1756823715840,0.06,205.02,204.98,26.0]
[1756823716047,0.66,205.01,204.99,8.01645527]
[1756823716267,0.66,205.01,204.98,26.0]
[1756823716447,0.66,205.01,204.99,8.01645527]
[1756823716642,0.66,205.01,205.0,8.01645527]
[1756823717148,0.66,205.01,204.99,8.01645527]
[1756823717349,0.66,205.0,204.93,0.14216157]
[1756823717551,8.67645527,205.0,204.93,13.59559401]
[1756823717767,0.66,204.99,204.94,8.01645527]
[1756823718075,0.66,204.98,204.94,8.01645527]
[1756823718253,0.66,204.97,204.93,34.01645527]
[1756823718441,0.66,204.96,204.88,4.10217005]
[1756823718641,0.66,204.96,204.91,8.04645527]
[1756823718847,0.66,204.95,204.91,8.04645527]
[1756823719057,0.66,204.94,204.91,12.92662737]
[1756823719243,0.66,204.94,204.92,34.01645527]
[1756823719443,0.66,204.94,204.92,8.01645527]
[1756823719669,40.74,204.97,204.93,8.01645527]
[1756823719970,40.74,204.97,204.95,8.01645527]
[1756823719971,0.66,204.96,204.95,8.01645527]
[1756823720180,0.66,204.99,204.95,8.01645527]
[1756823720355,0.06,205.02,204.92,26.0]
[1756823720356,48.75645527,204.97,204.92,26.0]
[1756823720672,0.66,204.96,204.92,34.01645527]
[1756823720869,0.66,204.95,204.92,34.01645527]
[1756823721064,8.01645527,204.99,204.94,8.01645527]
[1756823721242,41.4,204.98,204.94,8.01645527]
[1756823721562,41.4,204.97,204.94,8.01645527]
[1756823721760,41.4,204.97,204.92,26.0]
[1756823721761,0.66,204.96,204.92,26.0]
[1756823722065,0.66,204.95,204.93,8.01645527]
[1756823722278,0.66,204.99,204.94,8.01645527]
[1756823722501,0.66,204.98,204.95,8.01645527]
[1756823722774,41.4,204.97,204.96,8.01645527]
[1756823722943,41.4,204.97,204.95,8.01645527]
[1756823723143,40.74,204.97,204.95,8.01645527]
[1756823723474,0.66,205.0,204.96,8.01645527]
[1756823723645,0.66,205.0,204.92,31.56992936]
[1756823723646,40.74,204.99,204.98,8.01645527]
[1756823724065,41.4,204.99,204.97,8.01645527]
[1756823724371,40.74,204.99,204.98,8.01645527]
[1756823724877,41.4,204.99,204.95,8.01645527]
[1756823725063,41.4,204.99,204.92,26.0]
[1756823725064,0.66,204.98,204.94,8.01645527]
[1756823725269,0.66,204.97,204.91,0.03]
[1756823725456,0.66,204.97,204.93,8.01645527]
[1756823725658,0.66,204.96,204.93,8.01645527]
[1756823726398,0.66,204.95,204.93,8.01645527]
[1756823726556,4.87874943,204.98,204.94,8.01645527]
[1756823726759,0.66,204.97,204.94,8.01645527]
[1756823727082,0.66,204.97,204.95,8.01645527]
[1756823727383,0.66,204.96,204.91,0.03]
[1756823727572,0.66,204.96,204.91,8.04645527]
[1756823727771,5.53945819,204.95,204.91,0.03]
[1756823728162,0.66,204.94,204.91,0.03]
[1756823728479,41.4,204.93,204.91,0.03]
[1756823728864,0.66,204.92,204.91,0.03]
[1756823729076,41.4,204.93,204.91,8.04645527]
[1756823729666,40.74,204.93,204.91,8.04645527]
[1756823730067,0.66,204.95,204.91,8.04645527]
[1756823730266,41.4,204.94,204.91,8.04645527]
[1756823730476,0.66,204.93,204.91,0.03]
[1756823730780,40.74,204.92,204.91,0.03]
[1756823731083,48.75645527,204.92,204.91,0.03]
[1756823731380,0.66,204.92,204.91,0.03]
[1756823731555,41.4,204.92,204.91,0.03]
[1756823732356,46.27995315,204.92,204.91,0.03]
[1756823732575,54.29640842,204.92,204.91,0.03]
[1756823732781,46.27995315,204.92,204.91,0.03]
[1756823732955,54.29640842,204.92,204.91,0.03]
[1756823733564,0.66,204.92,204.91,0.03]
[1756823733891,40.74,204.92,204.91,0.03]
[1756823734055,0.66,204.92,204.91,0.03]
[1756823734366,41.4,204.92,204.91,0.03]
[1756823734763,49.41645527,204.92,204.91,0.03]
[1756823734959,8.67645527,204.92,204.91,0.03]
[1756823735163,41.4,204.92,204.91,0.03]
[1756823735686,8.01645527,204.94,204.91,0.03]
[1756823735893,0.66,204.97,204.91,0.03]
[1756823736579,41.4,204.98,204.92,4.87995315]
[1756823736757,0.06,205.01,204.97,8.01645527]
[1756823736962,41.4,205.0,204.97,8.01645527]
[1756823737198,40.74,204.99,204.97,8.01645527]
[1756823737496,0.06,205.01,204.98,8.01645527]
[1756823737852,40.74,205.0,204.97,26.0]
[1756823738056,40.74,205.0,204.99,8.01645527]
[1756823738356,41.38,205.0,204.96,8.01645527]
[1756823738558,0.66,204.99,204.96,8.01645527]
[1756823738958,0.66,204.98,204.93,34.01645527]
[1756823739158,8.01645527,204.94,204.88,8.04645527]
[1756823739379,48.73645527,204.93,204.88,0.03]
[1756823739573,8.73645527,204.92,204.88,0.03]
[1756823740307,8.73645527,204.92,204.86,0.03]
[1756823740308,26.0,204.88,204.86,0.03]
[1756823740899,41.44,204.87,204.86,0.03]
[1756823741085,40.72,204.87,204.86,0.03]
[1756823741293,41.44,204.87,204.86,0.03]
[1756823741466,4.87995315,204.92,204.86,0.03]
[1756823741668,8.01645527,204.9,204.86,0.03]
[1756823741886,40.72,204.89,204.86,8.04645527]
[1756823742092,40.72,204.89,204.86,0.03]
[1756823742093,41.44,204.89,204.86,0.03]
[1756823742399,0.72,204.88,204.86,0.03]
[1756823742574,40.72,204.89,204.86,0.03]
[1756823742988,41.44,204.89,204.86,0.03]
[1756823743166,46.32068023,204.89,204.86,0.03]
[1756823743582,8.73645527,204.88,204.86,0.03]
[1756823743798,8.01645527,204.87,204.86,0.03]
[1756823743990,8.73645527,204.87,204.86,0.03]
[1756823744199,13.61759941,204.87,204.86,0.03]
[1756823746094,13.90192255,204.87,204.86,0.03]
[1756823746297,0.72,204.87,204.86,0.03]
[1756823746504,40.72,204.87,204.86,0.03]
[1756823747005,40.72,204.87,204.86,8.04645527]
[1756823747208,8.73645527,204.93,204.86,8.04645527]
[1756823747389,40.72,204.92,204.87,8.01645527]
[1756823747588,0.72,204.91,204.86,0.03]
[1756823747792,8.01645527,204.9,204.86,0.03]
[1756823747992,40.72,204.89,204.87,8.01645527]
[1756823748190,0.72,204.88,204.86,0.03]
[1756823748513,8.73645527,204.88,204.86,0.03]
[1756823748711,0.72,204.87,204.86,0.03]
[1756823749414,41.44,204.87,204.86,0.03]
[1756823750185,40.72,204.87,204.86,0.03]
[1756823750393,0.72,204.9,204.86,0.03]
[1756823750623,26.72,204.93,204.86,0.03]
[1756823750792,48.73645527,204.92,204.86,0.03]
[1756823751093,48.73645527,204.92,204.87,8.01645527]
[1756823751296,0.72,204.91,204.86,0.03]
[1756823751496,0.72,204.91,204.86,8.04645527]
[1756823751700,0.72,204.9,204.86,8.04645527]
[1756823752094,40.72,204.89,204.88,8.01645527]
[1756823752294,0.72,204.94,204.88,8.01645527]
[1756823752484,40.72,204.93,204.9,8.01645527]
[1756823752807,0.72,204.95,204.91,8.01645527]
[1756823752984,41.44,204.94,204.9,8.01645527]
[1756823753186,40.72,204.94,204.91,8.01645527]
[1756823753393,4.8790371,204.96,204.91,8.01645527]
[1756823753712,0.72,204.94,204.91,8.01645527]
[1756823753920,0.72,204.93,204.87,26.0]
[1756823754216,0.72,204.93,204.88,8.01645527]
[1756823755015,12.89597313,204.94,204.88,8.01645527]
[1756823755207,0.72,204.93,204.86,26.03]
[1756823755406,8.73645527,204.93,204.86,0.03]
[1756823755729,4.87995315,204.92,204.87,8.01645527]
[1756823755917,49.45645527,204.91,204.86,0.03]
[1756823756288,41.44,204.91,204.86,8.04645527]
[1756823756634,0.72,204.91,204.86,8.04645527]
[1756823756929,40.72,204.9,204.87,8.01645527]
[1756823757088,40.72,204.9,204.86,0.03]
[1756823757089,40.72,204.9,204.88,8.01645527]
[1756823757289,12.8956941,204.95,204.89,8.01645527]
[1756823757601,40.72,204.94,204.9,8.01645527]
[1756823757811,46.31955624,204.94,204.9,8.01645527]
[1756823758011,46.31955624,204.94,204.88,8.01645527]
[1756823758012,41.44,204.93,204.88,8.01645527]
[1756823758183,0.72,204.93,204.88,8.01645527]
[1756823758387,40.72,204.92,204.88,8.01645527]
[1756823758588,40.72,204.92,204.9,8.01645527]
[1756823759022,40.72,204.92,204.89,8.01645527]
[1756823759606,8.73645527,204.91,204.86,0.03]
[1756823759824,4.88042947,204.9,204.86,0.03]
[1756823760003,5.60042947,204.9,204.86,0.03]
[1756823760319,48.73645527,204.92,204.86,8.04645527]
[1756823760524,40.72,204.92,204.87,8.01645527]
[1756823760826,0.72,204.91,204.87,8.01645527]
[1756823761028,0.72,204.91,204.86,8.04645527]
[1756823761189,0.72,204.91,204.86,0.03]
[1756823761391,40.72,204.9,204.86,8.04645527]
[1756823762137,8.01645527,204.87,204.86,0.03]
[1756823762429,8.01645527,204.87,204.84,0.03]
[1756823762648,8.01645527,204.85,204.84,0.03]
[1756823763146,8.73645527,204.85,204.84,0.03]
[1756823763414,40.7,204.85,204.84,0.03]
[1756823763624,48.71645527,204.85,204.84,0.03]
[1756823763793,49.43645527,204.85,204.84,0.03]
[1756823764118,13.61807596,204.85,204.84,0.03]
[1756823764422,54.31807596,204.85,204.84,0.03]
[1756823764823,5.60107107,204.88,204.84,0.03]
[1756823765120,8.01645527,204.87,204.84,0.03]
[1756823765416,5.60107107,204.88,204.84,0.03]
[1756823765629,16.98425634,204.91,204.85,12.10400853]
[1756823765788,4.88024781,204.91,204.85,12.10400853]
[1756823765990,40.7,204.9,204.87,12.10400853]
[1756823766287,12.10400853,204.97,204.89,12.10400853]
[1756823766511,40.7,204.96,204.93,12.10400853]
[1756823766692,0.06,205.0,204.95,12.10400853]
[1756823767013,40.7,204.99,204.94,26.71]
[1756823767191,40.7,204.99,204.95,0.71]
[1756823767386,0.06,205.0,204.96,0.71]
[1756823767607,0.06,205.0,204.99,39.73775558]
[1756823767608,40.06,205.0,204.99,39.73775558]
[1756823767785,40.06,205.0,204.99,40.44775558]
[1756823767998,40.06,205.0,204.99,40.73207872]
[1756823768308,0.06,205.0,204.99,57.71437399]
[1756823768817,0.06,205.01,205.0,14.02207872]
[1756823768991,0.06,205.01,205.0,26.77608725]
[1756823769186,0.06,205.02,205.01,25.84176411]
[1756823769525,0.06,205.02,205.01,26.49176411]
[1756823769701,0.06,205.02,205.01,26.77608725]
[1756823770092,0.06,205.02,205.01,31.65389808]
[1756823770292,0.06,205.02,205.01,19.54988955]
[1756823770502,0.06,205.02,205.01,31.65389808]
[1756823771814,0.06,205.05,205.02,14.02207872]
[1756823772002,0.06,205.05,205.04,14.02207872]
[1756823772208,1.95412688,205.24,205.1,26.0]
[1756823772400,41.37,205.22,205.1,64.23009578]
[1756823772793,41.37,205.22,205.1,64.88009578]
[1756823772794,46.24282384,205.22,205.1,64.88009578]
[1756823773113,41.37,205.22,205.1,69.03449544]
[1756823773317,46.24286043,205.22,205.1,64.88009578]
[1756823773618,0.2,205.23,205.16,0.42648471]
[1756823773825,28.1,205.2,205.17,13.59559401]
[1756823774036,0.2,205.23,205.18,0.65]
[1756823774345,0.2,205.23,205.22,14.02207872]
[1756823774997,0.2,205.23,205.22,26.12608725]
[1756823775409,0.2,205.23,205.22,26.77608725]
[1756823776706,0.2,205.23,205.22,31.64890666]
[1756823777212,0.2,205.23,205.22,26.77608725]
[1756823778097,0.2,205.23,205.22,14.67207872]
[1756823778299,0.2,205.23,205.22,26.77608725]
[1756823779111,0.2,205.23,205.22,25.84176411]
[1756823779322,0.2,205.23,205.22,51.84176411]
[1756823779822,0.2,205.23,205.22,52.12608725]
[1756823780222,0.2,205.23,205.22,52.77608725]
[1756823780539,0.2,205.23,205.22,52.12608725]
[1756823781543,0.2,205.23,205.22,31.64890666]
[1756823782610,0.2,205.23,205.22,26.77608725]
[1756823783010,0.2,205.23,205.22,14.02207872]
[1756823783227,0.2,205.23,205.22,13.87991715]
[1756823783607,0.2,205.23,205.22,25.98392568]
[1756823783909,0.2,205.23,205.22,14.02207872]
[1756823784120,0.2,205.23,205.22,13.73775558]
[1756823784323,0.2,205.23,205.22,26.0]
[1756823784508,5.76258198,205.23,205.17,13.59559401]
[1756823784705,12.10400853,205.27,205.2,26.0]
[1756823784911,12.10400853,205.25,205.19,12.10400853]
[1756823785134,12.10400853,205.26,205.2,12.10400853]
[1756823785625,36.38258198,205.29,205.2,12.10400853]
[1756823785818,12.10400853,205.25,205.19,12.10400853]
[1756823786005,52.72400853,205.25,205.15,0.14216157]
[1756823786202,12.10400853,205.22,205.16,12.10400853]
[1756823786405,16.97637551,205.24,205.18,12.10400853]
[1756823786629,4.87163248,205.27,205.23,12.10400853]
[1756823786930,32.26,205.27,205.25,12.10400853]
[1756823787145,4.87141713,205.28,205.25,12.10400853]
[1756823787340,40.62,205.28,205.27,12.10400853]
[1756823787506,40.62,205.28,205.23,0.14216157]
[1756823787705,40.62,205.28,205.26,12.10400853]
[1756823787904,40.6,205.28,205.26,12.10400853]
[1756823788134,40.6,205.28,205.25,12.10400853]
[1756823788347,5.56172472,205.27,205.25,12.10400853]
[1756823788663,40.6,205.27,205.24,12.10400853]
[1756823788864,0.69,205.26,205.22,12.10400853]
[1756823789079,12.79400853,205.25,205.12,0.65]
[1756823789232,0.69,205.25,205.19,12.10400853]
[1756823789565,0.69,205.24,205.2,12.10400853]
[1756823789731,41.29,205.23,205.16,26.0]
[1756823790042,41.29,205.23,205.13,13.59559401]
[1756823790233,41.29,205.23,205.19,12.10400853]
[1756823790433,5.56281941,205.22,205.19,12.10400853]
[1756823790954,0.69,205.21,205.18,12.10400853]
[1756823791152,53.39400853,205.21,205.15,12.10400853]
[1756823791452,12.10400853,205.16,205.11,0.03]
[1756823791659,0.69,205.2,205.11,0.03]
[1756823791660,12.10400853,205.15,205.11,0.03]
[1756823791855,12.10400853,205.13,205.11,0.03]
[1756823792158,26.0,205.19,205.11,0.03]
[1756823792454,4.87400692,205.17,205.13,12.10400853]
[1756823792642,0.69,205.16,205.11,0.03]
[1756823792952,12.10400853,205.15,205.11,0.03]
[1756823793252,12.79400853,205.15,205.11,0.03]
[1756823793469,0.69,205.14,205.11,0.03]
[1756823794149,40.6,205.13,205.12,12.10400853]
[1756823794356,40.6,205.13,205.11,0.03]
[1756823794665,4.87425527,205.16,205.11,12.13400853]
[1756823794829,4.87395873,205.18,205.11,0.68]
[1756823795150,40.6,205.18,205.17,12.10400853]
[1756823795537,40.6,205.22,205.17,0.65]
[1756823795745,40.6,205.22,205.14,0.42648471]
[1756823795746,12.79400853,205.21,205.14,26.0]
[1756823796048,12.79400853,205.21,205.15,12.10400853]
[1756823796252,12.79400853,205.21,205.14,26.0]
[1756823796253,0.69,205.21,205.16,12.10400853]
[1756823796425,0.69,205.21,205.14,26.0]
[1756823796426,4.87353184,205.19,205.15,12.10400853]
[1756823796630,0.69,205.18,205.11,39.62559401]
[1756823796829,0.69,205.18,205.14,12.10400853]
[1756823797133,12.18199422,205.23,205.15,12.10400853]
[1756823797134,40.6,205.17,205.15,12.10400853]
[1756823797343,40.6,205.16,205.15,12.10400853]
[1756823798565,46.16424449,205.16,205.11,26.03]
[1756823798864,12.79400853,205.15,205.11,0.03]
[1756823799478,12.10400853,205.13,205.11,0.03]
[1756823799877,0.68,205.12,205.11,0.03]
[1756823800036,12.10400853,205.13,205.11,0.03]
[1756823800235,41.28,205.12,205.11,0.03]
[1756823800436,58.25920353,205.12,205.11,0.03]
[1756823801333,17.65920353,205.12,205.11,0.03]
[1756823801736,5.555195,205.12,205.11,0.03]
[1756823802028,17.65920353,205.12,205.11,0.03]
[1756823802233,5.555195,205.12,205.11,0.03]
[1756823802560,46.155195,205.12,205.11,0.03]
[1756823802759,45.475195,205.12,205.11,0.03]
[1756823802955,40.6,205.12,205.11,0.03]
[1756823803137,41.28,205.12,205.11,0.03]
[1756823803344,16.97875581,205.14,205.11,0.03]
[1756823803666,0.68,205.16,205.11,12.13400853]
[1756823803854,0.68,205.19,205.14,12.10400853]
[1756823804172,52.70400853,205.18,205.11,0.03]
[1756823804337,12.10400853,205.17,205.11,12.13400853]
[1756823804535,12.10400853,205.2,205.14,12.10400853]
[1756823804754,40.6,205.19,205.16,12.10400853]
[1756823805171,40.6,205.19,205.11,4.90539122]
[1756823805172,12.10400853,205.17,205.11,26.03]
[1756823805339,12.78400853,205.16,205.11,0.03]
[1756823805543,0.68,205.16,205.11,0.03]
[1756823805742,0.68,205.18,205.11,12.13400853]
[1756823805944,12.78400853,205.17,205.11,12.13400853]
[1756823806465,12.10400853,205.15,205.11,0.03]
[1756823806659,57.57872823,205.14,205.11,0.03]
[1756823806982,12.10400853,205.13,205.11,0.03]
[1756823807183,12.10400853,205.12,205.11,0.03]
[1756823807341,12.78400853,205.13,205.11,0.03]
[1756823807742,40.58,205.12,205.11,0.03]
[1756823808946,12.10400853,205.16,205.11,0.03]
[1756823809153,40.58,205.12,205.11,12.13400853]
[1756823809345,40.58,205.12,205.11,0.03]
[1756823809562,41.26,205.12,205.11,0.03]
[1756823809765,40.58,205.12,205.11,0.03]
[1756823809977,52.68400853,205.12,205.11,0.03]
[1756823810182,53.36400853,205.12,205.11,0.03]
[1756823810880,58.23920353,205.12,205.11,0.03]
[1756823811259,26.68,205.18,205.11,12.85400853]
[1756823811464,40.58,205.17,205.12,12.10400853]
[1756823811657,0.68,205.18,205.14,12.10400853]
[1756823811854,40.58,205.17,205.14,12.10400853]
[1756823812061,4.87353184,205.19,205.14,12.10400853]
[1756823812354,40.58,205.18,205.14,12.10400853]
[1756823812971,4.87424449,205.16,205.12,12.10400853]
[1756823813467,5.55424449,205.16,205.11,12.13400853]
[1756823813681,5.55424449,205.16,205.11,0.03]
[1756823813865,5.55424449,205.16,205.11,12.13400853]
[1756823814051,5.55424449,205.16,205.12,12.10400853]
[1756823814254,0.68,205.15,205.11,0.03]
[1756823814462,40.58,205.14,205.11,0.03]
[1756823814660,40.58,205.14,205.11,12.13400853]
[1756823814955,40.58,205.14,205.13,12.10400853]
[1756823815170,46.1347197,205.14,205.11,12.13400853]
[1756823815356,46.1347197,205.14,205.11,0.03]
[1756823815959,0.68,205.13,205.11,0.03]
[1756823816359,45.4547197,205.14,205.11,0.03]
[1756823816566,40.58,205.14,205.11,0.03]
[1756823816771,46.1348242,205.14,205.11,0.03]
[1756823816973,45.4548242,205.14,205.11,0.03]
[1756823817255,46.1348242,205.14,205.11,0.03]
[1756823817472,0.68,205.13,205.11,0.03]
[1756823817774,45.4548242,205.14,205.11,0.03]
[1756823817983,12.78400853,205.17,205.11,12.13400853]
[1756823818279,40.58,205.16,205.13,12.10400853]
[1756823818687,40.58,205.16,205.11,0.03]
[1756823818868,40.58,205.16,205.13,12.10400853]
[1756823819067,0.68,205.15,205.11,0.03]
[1756823819271,12.78400853,205.15,205.11,0.03]
[1756823822172,0.14216157,205.11,205.08,0.03]
[1756823822373,12.10400853,205.09,205.08,0.03]
[1756823822770,12.78400853,205.09,205.08,0.03]
[1756823823091,17.65991666,205.09,205.08,0.03]